bitfinex/quotes_SOLUSD_20240613
["timestamp","ask_amount","ask_price","bid_price","bid_amount"]
[1718259366091,263.85111744,151.98,151.93,53.3]
[1718259368107,263.85111744,151.98,151.93,45.0]
[1718259368443,263.85111744,151.98,151.93,53.3]
[1718259370708,9.55111744,151.98,151.93,45.0]
[1718259370912,9.55111744,151.98,151.94,8.3]
[1718259371200,9.55111744,151.98,151.95,45.0]
[1718259373210,17.85111744,151.98,151.92,0.34]
[1718259373424,8.3,151.96,151.89,98.71365988]
[1718259373616,8.3,151.96,151.9,8.3]
[1718259374121,9.55111744,151.95,151.9,8.3]
[1718259374706,9.55111744,151.95,151.88,15.5369]
[1718259374907,9.55111744,151.9,151.84,15.8624]
[1718259375122,8.3,151.89,151.82,6.0909]
[1718259375411,17.85111744,151.88,151.82,8.3]
[1718259376225,9.55111744,151.88,151.82,2.437]
[1718259376416,9.55111744,151.88,151.83,8.3]
[1718259376614,9.55111744,151.88,151.84,53.3]
[1718259376832,9.55111744,151.88,151.84,8.3]
[1718259377028,9.55111744,151.88,151.85,45.0]
[1718259377611,9.55111744,151.88,151.85,53.3]
[1718259377931,9.55111744,151.9,151.87,8.3]
[1718259378133,9.55111744,151.92,151.88,53.3]
[1718259378320,9.55111744,151.92,151.88,8.3]
[1718259378518,9.55111744,151.92,151.89,45.0]
[1718259379907,9.55111744,151.92,151.88,45.0]
[1718259384149,17.85111744,151.92,151.87,45.0]
[1718259384449,17.85111744,151.92,151.83,32.65084909]
[1718259384450,8.3,151.91,151.83,35.08764909]
[1718259384755,9.55111744,151.9,151.85,8.3]
[1718259385122,9.55111744,151.9,151.86,0.17]
[1718259385843,9.55111744,151.9,151.86,53.47]
[1718259387333,9.55111744,151.9,151.86,55.9064]
[1718259387526,9.55111744,151.9,151.87,8.3]
[1718259387726,9.55111744,151.9,151.88,45.0]
[1718259388256,9.55111744,151.92,151.88,45.0]
[1718259388552,16.3834,151.96,151.91,8.3]
[1718259388738,16.3834,151.96,151.92,53.3]
[1718259388739,25.93451744,151.96,151.92,53.3]
[1718259388929,9.55111744,151.96,151.93,8.3]
[1718259390552,9.55111744,151.96,151.92,8.3]
[1718259390750,9.55111744,151.96,151.93,45.0]
[1718259391050,9.55111744,151.98,151.93,45.0]
[1718259391251,9.55111744,151.96,151.93,45.0]
[1718259392850,9.55111744,151.96,151.93,53.3]
[1718259393033,9.55111744,151.98,151.94,8.3]
[1718259393374,9.55111744,151.98,151.95,45.0]
[1718259393530,9.55111744,151.98,151.93,53.3]
[1718259394456,9.55111744,151.98,151.93,45.0]
[1718259394642,9.55111744,151.98,151.93,53.3]
[1718259398169,9.55111744,151.98,151.93,55.7353]
[1718259399371,9.55111744,151.98,151.93,53.3]
[1718259399677,14.8064,151.99,151.89,8.3]
[1718259399678,17.85111744,151.94,151.89,8.3]
[1718259399843,17.85111744,151.94,151.88,8.3]
[1718259400168,17.85111744,151.94,151.88,10.7361]
[1718259400770,17.85111744,151.94,151.89,8.3]
[1718259400948,9.55111744,151.94,151.9,45.0]
[1718259401977,24.56861744,151.96,151.9,53.3]
[1718259402143,24.56861744,151.96,151.91,8.3]
[1718259402472,24.56861744,151.96,151.92,45.0]
[1718259402663,32.86861744,151.96,151.92,45.0]
[1718259402871,32.86861744,151.96,151.91,45.0]
[1718259403052,9.55111744,151.94,151.91,45.0]
[1718259403775,15.0175,151.96,151.91,45.0]
[1718259403776,24.56861744,151.96,151.91,53.3]
[1718259410685,24.56861744,151.96,151.91,45.0]
[1718259412685,24.56861744,151.96,151.92,0.17]
[1718259412863,9.55111744,151.96,151.92,8.47]
[1718259413189,9.55111744,151.96,151.93,45.0]
[1718259414383,9.55111744,151.96,151.92,45.51]
[1718259415167,9.55111744,151.98,151.94,8.3]
[1718259415373,9.55111744,151.98,151.95,45.0]
[1718259417165,9.55111744,151.96,151.94,45.0]
[1718259419961,9.55111744,151.96,151.93,45.0]
[1718259420663,9.55111744,151.96,151.93,53.3]
[1718259422084,9.55111744,151.96,151.94,0.17]
[1718259422287,9.55111744,151.98,151.94,0.17]
[1718259422592,9.55111744,151.98,151.94,8.64]
[1718259422765,9.55111744,151.98,151.95,45.0]
[1718259423782,9.55111744,151.98,151.94,45.17]
[1718259424086,9.55111744,151.98,151.94,53.47]
[1718259424386,9.55111744,151.98,151.94,45.17]
[1718259424887,17.85111744,151.96,151.89,32.63795127]
[1718259425077,17.85111744,151.96,151.9,8.3]
[1718259425779,17.85111744,151.96,151.91,8.3]
[1718259426291,17.85111744,151.96,151.92,45.0]
[1718259426676,9.55111744,151.94,151.92,45.0]
[1718259428087,9.55111744,151.94,151.92,53.3]
[1718259428688,9.55111744,151.94,151.92,45.0]
[1718259430189,9.55111744,151.96,151.92,53.3]
[1718259430570,9.55111744,151.96,151.93,8.98]
[1718259430777,9.55111744,151.96,151.94,45.0]
[1718259431980,9.55111744,151.96,151.93,45.0]
[1718259433705,9.55111744,151.96,151.92,45.0]
[1718259433906,9.55111744,151.96,151.92,53.3]
[1718259434601,9.55111744,151.96,151.92,45.0]
[1718259436205,9.55111744,151.96,151.92,53.3]
[1718259436803,9.55111744,151.96,151.93,8.47]
[1718259436989,9.55111744,151.96,151.94,45.17]
[1718259437700,9.55111744,151.96,151.94,53.47]
[1718259441600,9.55111744,151.96,151.95,8.3]
[1718259441797,9.55111744,151.96,151.95,53.3]
[1718259442601,9.55111744,151.96,151.95,53.47]
[1718259444901,9.55111744,151.98,151.95,53.64]
[1718259445088,9.55111744,151.98,151.96,53.3]
[1718259447308,16.10531744,152.02,151.96,53.3]
[1718259447607,9.55111744,152.02,151.97,0.34]
[1718259447805,9.55111744,152.02,151.98,8.3]
[1718259448018,9.55111744,152.02,151.99,45.0]
[1718259448393,9.55111744,152.02,151.98,45.0]
[1718259449312,9.55111744,152.0,151.98,45.0]
[1718259458517,9.55111744,152.0,151.95,8.3]
[1718259458717,17.85111744,152.0,151.94,0.17]
[1718259458923,9.55111744,151.98,151.94,0.34]
[1718259459105,9.55111744,151.98,151.95,8.3]
[1718259459706,9.55111744,151.98,151.94,0.34]
[1718259459900,9.55111744,151.98,151.95,8.3]
[1718259460824,9.55111744,151.98,151.96,45.0]
[1718259461940,17.85111744,152.0,151.96,45.0]
[1718259462806,9.55111744,151.98,151.96,45.0]
[1718259467337,9.55111744,152.0,151.96,45.0]
[1718259467519,9.55111744,152.0,151.96,53.3]
[1718259468544,9.55111744,152.0,151.97,0.34]
[1718259468719,9.55111744,152.0,151.97,0.17]
[1718259468921,9.55111744,152.0,151.96,45.0]
[1718259472120,9.55111744,151.98,151.96,45.0]
[1718259473640,9.55111744,152.0,151.97,0.17]
[1718259474521,9.55111744,152.0,151.96,45.0]
[1718259475535,9.55111744,151.98,151.96,45.0]
[1718259477143,9.55111744,151.94,151.88,32.6401002]
[1718259477329,9.55111744,151.92,151.88,40.9401002]
[1718259477648,8.3,151.93,151.88,40.9401002]
[1718259477836,8.3,151.94,151.88,40.9401002]
[1718259478031,9.55111744,151.93,151.88,43.3762002]
[1718259479041,9.55111744,151.93,151.88,35.0762002]
[1718259479242,9.55111744,151.93,151.88,43.3762002]
[1718259479844,17.85111744,151.93,151.87,16.0624]
[1718259480038,17.85111744,151.91,151.84,32.64869875]
[1718259480245,9.55111744,151.89,151.85,8.3]
[1718259480550,9.55111744,151.93,151.88,2.436]
[1718259480751,9.55111744,151.93,151.88,8.3]
[1718259481254,17.85111744,151.93,151.87,10.7362]
[1718259481635,8.3,151.92,151.88,0.17]
[1718259482144,17.85111744,151.93,151.88,45.17]
[1718259482945,17.85111744,151.93,151.88,53.47]
[1718259483547,9.55111744,151.93,151.89,0.17]
[1718259483847,17.85111744,151.93,151.88,45.17]
[1718259484666,8.3,151.92,151.88,45.17]
[1718259484832,9.55111744,151.91,151.88,45.17]
[1718259486228,9.55111744,151.91,151.88,0.17]
[1718259486435,9.55111744,151.89,151.88,0.17]
[1718259487532,9.55111744,151.89,151.88,0.51]
[1718259487731,9.55111744,151.89,151.88,8.98]
[1718259487937,9.55111744,151.89,151.88,53.98]
[1718259488750,9.55111744,151.89,151.88,45.68]
[1718259489050,9.55111744,151.89,151.88,53.98]
[1718259492834,9.55111744,151.89,151.88,45.68]
[1718259493038,9.55111744,151.89,151.88,53.98]
[1718259493542,9.55111744,151.92,151.89,0.17]
[1718259493852,9.55111744,151.92,151.89,45.17]
[1718259494029,9.55111744,151.92,151.89,45.0]
[1718259494228,9.55111744,151.92,151.88,45.0]
[1718259494641,17.85111744,151.92,151.88,45.0]
[1718259494839,17.85111744,151.92,151.87,45.0]
[1718259495064,9.55111744,151.9,151.87,45.0]
[1718259495362,9.55111744,151.9,151.86,8.81]
[1718259495363,9.55111744,151.9,151.84,2.4367]
[1718259495547,9.55111744,151.9,151.86,8.3]
[1718259495749,9.55111744,151.9,151.85,8.3]
[1718259496457,9.55111744,151.88,151.83,18.4499]
[1718259496761,8.3,151.87,151.81,3.58179751]
[1718259496963,8.3,151.88,151.81,2.4371]
[1718259497170,8.3,151.87,151.82,8.3]
[1718259497339,9.55111744,151.87,151.82,8.3]
[1718259497540,9.55111744,151.87,151.82,10.737]
[1718259497740,9.55111744,151.87,151.82,8.3]
[1718259498049,9.55111744,151.87,151.83,45.0]
[1718259499564,6.5492,151.91,151.84,8.81]
[1718259499565,9.55111744,151.89,151.84,8.81]
[1718259499741,9.55111744,151.89,151.85,45.0]
[1718259500137,17.85111744,151.89,151.84,45.17]
[1718259500355,8.3,151.88,151.84,45.0]
[1718259500557,9.55111744,151.87,151.84,45.0]
[1718259502064,17.85111744,151.89,151.85,0.17]
[1718259502965,9.55111744,151.89,151.86,10.7364]
[1718259503146,9.55111744,151.89,151.87,45.0]
[1718259503667,9.55111744,151.91,151.88,0.34]
[1718259503960,9.55111744,151.91,151.88,8.64]
[1718259504261,9.55111744,151.91,151.89,45.0]
[1718259504460,9.55111744,151.91,151.88,0.34]
[1718259504859,9.55111744,151.91,151.88,8.64]
[1718259505047,9.55111744,151.91,151.89,45.0]
[1718259508767,9.55111744,151.91,151.9,0.17]
[1718259508957,9.55111744,151.91,151.9,0.51]
[1718259509151,9.55111744,151.91,151.9,0.34]
[1718259509472,9.55111744,151.91,151.9,0.17]
[1718259513174,9.55111744,151.91,151.88,8.3]
[1718259514568,9.55111744,151.91,151.89,45.0]
[1718259514950,9.55111744,151.91,151.88,45.0]
[1718259518767,9.55111744,151.91,151.88,53.3]
[1718259523779,9.55111744,151.91,151.89,8.98]
[1718259523978,9.55111744,151.91,151.9,45.0]
[1718259524182,9.55111744,151.91,151.9,45.17]
[1718259524683,9.55111744,151.91,151.9,45.0]
[1718259526868,17.85111744,151.91,151.84,126.41152251]
[1718259527075,8.3,151.88,151.8,40.56931575]
[1718259527582,8.3,151.88,151.83,8.3]
[1718259527763,8.3,151.88,151.8,43.00661575]
[1718259527764,9.55111744,151.87,151.8,43.00661575]
[1718259527958,8.3,151.88,151.83,8.3]
[1718259528154,8.3,151.88,151.81,2.4372]
[1718259528457,9.55111744,151.87,151.84,8.3]
[1718259528657,9.55111744,151.89,151.87,0.17]
[1718259528885,9.55111744,151.89,151.87,8.98]
[1718259529072,9.55111744,151.89,151.88,45.17]
[1718259529589,9.55111744,151.91,151.88,45.17]
[1718259529806,9.55111744,151.91,151.89,8.47]
[1718259530084,9.55111744,151.91,151.9,45.0]
[1718259533807,9.55111744,151.91,151.89,53.64]
[1718259535174,9.55111744,151.91,151.89,53.47]
[1718259538897,16.20641744,151.95,151.9,0.17]
[1718259539195,9.55111744,151.95,151.91,8.3]
[1718259539570,9.55111744,151.95,151.92,45.0]
[1718259539968,9.55111744,151.95,151.92,53.3]
[1718259540402,9.55111744,151.95,151.92,45.0]
[1718259542884,9.55111744,151.95,151.92,53.3]
[1718259564496,9.55111744,151.93,151.9,8.47]
[1718259565895,9.55111744,151.93,151.91,45.0]
[1718259576305,9.55111744,151.95,151.92,8.47]
[1718259576504,9.55111744,151.96,151.94,8.3]
[1718259576714,9.55111744,151.96,151.95,53.3]
[1718259576912,9.55111744,151.96,151.95,8.3]
[1718259577113,9.55111744,151.96,151.95,53.3]
[1718259577713,9.55111744,151.98,151.95,53.3]
[1718259577999,9.55111744,151.98,151.96,45.0]
[1718259589352,9.55111744,151.98,151.96,53.3]
[1718259592048,9.55111744,151.98,151.96,45.0]
[1718259592845,9.55111744,151.98,151.95,45.34]
[1718259593049,9.55111744,151.96,151.95,45.34]
[1718259594733,9.55111744,151.98,151.95,45.34]
[1718259595449,9.55111744,151.98,151.95,53.64]
[1718259597347,9.55111744,151.98,151.96,0.17]
[1718259597546,9.55111744,151.98,151.96,0.51]
[1718259601953,9.55111744,151.98,151.96,8.81]
[1718259602135,9.55111744,151.98,151.97,45.0]
[1718259602336,9.55111744,151.98,151.97,45.17]
[1718259602538,9.55111744,151.98,151.97,45.51]
[1718259602768,9.55111744,152.0,151.97,53.81]
[1718259602933,9.55111744,152.0,151.98,8.3]
[1718259603264,9.55111744,152.0,151.99,45.0]
[1718259603861,9.55111744,152.0,151.99,53.3]
[1718259607354,9.55111744,152.0,151.99,45.0]
[1718259607563,9.55111744,152.0,151.99,53.3]
[1718259607856,9.55111744,152.0,151.99,45.0]
[1718259619771,9.55111744,152.0,151.95,15.8569]
[1718259619941,9.55111744,151.98,151.91,15.9926]
[1718259620144,9.55111744,151.96,151.91,15.9926]
[1718259620462,9.55111744,151.96,151.92,8.3]
[1718259620670,9.55111744,151.96,151.91,8.3]
[1718259620870,9.55111744,151.94,151.91,8.3]
[1718259623869,9.55111744,151.96,151.92,45.0]
[1718259624072,9.55111744,151.96,151.93,8.3]
[1718259624288,9.55111744,151.96,151.94,53.3]
[1718259624453,9.55111744,151.96,151.95,45.0]
[1718259625078,9.55111744,151.96,151.94,45.0]
[1718259634106,9.55111744,151.96,151.93,45.0]
[1718259646701,9.55111744,151.98,151.94,8.81]
[1718259646909,9.55111744,151.98,151.95,53.3]
[1718259647105,9.55111744,151.98,151.95,8.3]
[1718259647312,9.55111744,151.98,151.96,45.0]
[1718259650633,9.55111744,151.98,151.97,8.3]
[1718259650801,9.55111744,151.98,151.97,53.3]
[1718259653421,9.55111744,152.0,151.97,53.3]
[1718259653622,9.55111744,152.0,151.98,45.0]
[1718259656822,9.55111744,152.0,151.98,53.3]
[1718259657328,9.55111744,152.02,151.99,8.3]
[1718259657499,9.55111744,152.02,152.0,45.0]
[1718259660229,9.55111744,152.02,152.0,53.3]
[1718259660538,9.55111744,152.02,152.0,45.0]
[1718259682348,9.55111744,152.02,151.99,45.0]
[1718259684071,9.55111744,152.02,151.98,8.3]
[1718259688257,9.55111744,152.02,151.98,10.7345]
[1718259688456,9.55111744,152.02,151.99,45.0]
[1718259689189,9.55111744,152.02,151.98,10.7345]
[1718259690979,9.55111744,152.02,151.99,0.17]
[1718259691182,9.55111744,152.02,151.99,0.34]
[1718259691360,9.55111744,152.02,151.99,2.7743]
[1718259691777,9.55111744,152.02,151.99,11.0743]
[1718259692484,16.00751744,152.08,152.02,0.17]
[1718259692779,9.55111744,152.08,152.04,8.3]
[1718259694891,9.55111744,152.08,152.07,8.3]
[1718259696977,9.55111744,152.08,152.05,8.3]
[1718259697793,9.55111744,152.08,152.04,8.3]
[1718259697970,9.55111744,152.08,152.05,8.3]
[1718259698490,17.85111744,152.11,152.05,8.3]
[1718259698871,9.55111744,152.11,152.06,8.3]
[1718259702400,9.55111744,152.11,152.07,8.3]
[1718259707302,17.85111744,152.11,152.06,8.3]
[1718259708806,8.3,152.1,152.04,8.3]
[1718259708994,9.55111744,152.07,151.99,92.02954011]
[1718259709173,8.3,152.06,152.0,8.3]
[1718259709777,8.3,152.05,151.99,8.3]
[1718259710189,17.85111744,152.05,151.99,8.3]
[1718259710594,8.3,152.04,151.99,10.7343]
[1718259710779,17.85111744,152.05,152.0,8.3]
[1718259710985,9.55111744,152.05,152.01,8.3]
[1718259711699,9.55111744,152.05,152.02,0.51]
[1718259711905,9.55111744,152.05,152.02,45.51]
[1718259714788,9.55111744,152.05,152.02,53.81]
[1718259716308,16.4688,152.09,152.03,8.3]
[1718259716489,9.55111744,152.11,152.06,8.3]
[1718259716490,17.85111744,152.11,152.06,8.3]
[1718259716683,9.55111744,152.11,152.06,8.3]
[1718259716882,17.85111744,152.11,152.06,8.3]
[1718259719312,9.55111744,152.11,152.06,8.3]
[1718259719481,9.55111744,152.11,152.07,0.34]
[1718259721414,9.55111744,152.11,152.07,45.34]
[1718259723721,9.55111744,152.11,152.08,0.17]
[1718259726812,9.55111744,152.11,152.07,45.34]
[1718259728797,9.55111744,152.11,152.07,56.073]
[1718259729193,9.55111744,152.11,152.08,0.17]
[1718259733389,17.85111744,152.13,152.08,0.17]
[1718259733615,9.55111744,152.13,152.1,8.3]
[1718259734908,9.55111744,152.15,152.11,53.98]
[1718259735221,9.55111744,152.15,152.11,0.34]
[1718259735397,17.85111744,152.15,152.11,0.34]
[1718259736200,9.55111744,152.13,152.08,2.4328]
[1718259736395,9.55111744,152.13,152.09,8.64]
[1718259736598,9.55111744,152.13,152.09,0.34]
[1718259737115,9.55111744,152.13,152.09,45.34]
[1718259738624,9.55111744,152.13,152.09,47.7727]
[1718259739223,9.55111744,152.13,152.09,56.0727]
[1718259739429,9.55111744,152.13,152.1,2.7725]
[1718259739627,9.55111744,152.13,152.1,0.34]
[1718259739925,9.55111744,152.13,152.11,0.17]
[1718259742020,9.55111744,152.13,152.11,45.34]
[1718259742234,9.55111744,152.13,152.11,45.17]
[1718259742405,9.55111744,152.13,152.11,0.17]
[1718259743323,9.55111744,152.13,152.1,45.17]
[1718259743513,9.55111744,152.13,152.09,0.17]
[1718259743707,9.55111744,152.13,152.07,16.1042]
[1718259743915,17.85111744,152.11,152.06,10.7332]
[1718259744120,17.85111744,152.11,152.06,8.3]
[1718259744320,17.85111744,152.11,152.06,10.7332]
[1718259746443,17.85111744,152.11,152.07,0.17]
[1718259746746,17.85111744,152.11,152.07,45.34]
[1718259747325,8.3,152.08,151.99,26.4836]
[1718259747529,16.1189,152.11,152.01,2.4339]
[1718259747530,17.85111744,152.05,152.01,2.4339]
[1718259747734,17.85111744,152.05,152.0,2.4341]
[1718259747906,9.55111744,152.05,151.99,17.6727]
[1718259748102,8.3,152.04,151.99,17.6727]
[1718259748520,8.3,152.04,152.0,2.4341]
[1718259748725,8.3,152.03,152.0,2.4341]
[1718259749433,8.3,152.03,152.01,0.17]
[1718259749646,8.3,152.04,152.01,0.34]
[1718259750237,8.3,152.04,152.01,2.774]
[1718259752447,8.3,152.02,151.98,2.4344]
[1718259752743,8.3,152.02,151.99,2.4343]
[1718259753117,15.72491744,152.08,151.97,12.173]
[1718259753328,8.3,152.05,152.01,2.434]
[1718259754442,8.3,152.05,152.0,11.0741]
[1718259754615,8.3,152.05,152.01,0.34]
[1718259756924,9.55111744,152.04,152.01,0.34]
[1718259758125,17.85111744,152.04,151.99,0.34]
[1718259758334,17.85111744,152.04,152.0,0.34]
[1718259759821,17.85111744,152.04,151.99,45.17]
[1718259760016,9.55111744,152.04,152.0,0.34]
[1718259760244,9.55111744,152.04,152.01,8.64]
[1718259760433,9.55111744,152.04,152.02,45.17]
[1718259761035,16.1189,152.11,152.03,0.17]
[1718259761036,9.55111744,152.06,152.03,0.17]
[1718259761239,9.55111744,152.06,152.03,0.51]
[1718259761443,9.55111744,152.06,152.04,0.17]
[1718259761946,9.55111744,152.06,152.04,0.34]
[1718259762447,9.55111744,152.06,152.02,45.0]
[1718259762829,17.85111744,152.06,152.02,45.0]
[1718259763926,17.85111744,152.06,152.02,0.17]
[1718259764251,17.85111744,152.06,152.02,0.51]
[1718259768752,9.55111744,152.06,152.02,2.9438]
[1718259768932,9.55111744,152.06,152.02,47.9438]
[1718259770849,9.55111744,152.06,152.03,2.4337]
[1718259771057,9.55111744,152.06,152.03,45.0]
[1718259771632,9.55111744,152.06,152.02,47.9438]
[1718259772842,17.85111744,152.06,152.02,47.9438]
[1718259773358,17.85111744,152.06,152.02,45.51]
[1718259774061,17.85111744,152.06,152.02,47.9438]
[1718259774259,9.55111744,152.06,152.02,47.9438]
[1718259774942,9.55111744,152.06,152.02,56.2438]
[1718259777356,9.55111744,152.08,152.02,53.81]
[1718259777554,9.55111744,152.08,152.06,0.17]
[1718259777761,9.55111744,152.08,152.06,45.51]
[1718259778440,9.55111744,152.08,152.06,0.34]
[1718259780455,9.55111744,152.08,152.05,45.0]
[1718259780665,8.3,152.07,152.03,0.17]
[1718259780848,8.3,152.07,152.04,0.17]
[1718259781046,8.3,152.07,152.04,0.34]
[1718259781656,8.3,152.07,152.03,0.34]
[1718259781848,8.3,152.07,152.04,0.17]
[1718259783040,17.85111744,152.08,152.04,0.17]
[1718259783246,8.3,152.05,151.99,2.4342]
[1718259783453,9.55111744,152.04,152.0,2.4342]
[1718259783768,8.3,152.05,152.0,10.7342]
[1718259784149,9.55111744,152.04,152.0,2.4342]
[1718259784442,9.55111744,152.04,152.0,47.4342]
[1718259784757,17.85111744,152.04,152.01,0.34]
[1718259786763,9.55111744,152.04,152.01,0.34]
[1718259787466,8.3,152.05,152.01,0.34]
[1718259787879,8.3,152.04,152.01,0.34]
[1718259788254,17.85111744,152.04,152.01,0.34]
[1718259791265,8.3,152.03,152.0,45.0]
[1718259791477,8.3,152.03,151.99,0.51]
[1718259791952,8.3,152.03,151.99,2.9442]
[1718259792353,9.55111744,152.04,151.99,2.9442]
[1718259792354,8.3,152.02,151.99,2.9442]
[1718259792681,8.3,152.02,151.99,0.51]
[1718259794184,8.3,152.02,151.99,2.9443]
[1718259796458,8.3,152.02,152.0,2.4341]
[1718259796863,8.3,152.03,152.0,2.4341]
[1718259797057,9.55111744,152.04,152.0,2.4341]
[1718259797264,9.55111744,152.04,152.01,2.434]
[1718259797574,17.85111744,152.04,152.0,2.4341]
[1718259797774,17.85111744,152.04,152.01,2.774]
[1718259797965,8.3,152.02,151.99,0.51]
[1718259798165,9.55111744,152.04,151.99,2.9442]
[1718259798166,8.3,152.03,151.99,2.9442]
[1718259798477,17.85111744,152.04,151.99,2.9442]
[1718259798660,8.3,152.03,151.99,2.9442]
[1718259798865,17.85111744,152.04,151.99,2.9442]
[1718259801174,8.3,152.03,151.99,2.9442]
[1718259807089,8.3,152.03,151.99,0.51]
[1718259807591,8.3,152.03,151.99,2.9443]
[1718259807899,17.85111744,152.03,151.99,2.9443]
[1718259808700,15.3284,152.06,151.99,2.9443]
[1718259808701,9.55111744,152.05,151.99,2.9443]
[1718259809000,8.3,152.04,151.99,2.9443]
[1718259809373,9.55111744,152.03,151.99,2.9443]
[1718259812007,15.3284,152.06,152.0,0.17]
[1718259812008,9.55111744,152.06,152.0,0.17]
[1718259812195,9.55111744,152.06,152.02,2.4337]
[1718259812381,9.55111744,152.06,152.02,55.7337]
[1718259812783,9.55111744,152.06,152.03,0.51]
[1718259812997,9.55111744,152.08,152.03,0.51]
[1718259813187,9.55111744,152.08,152.05,0.17]
[1718259813381,9.55111744,152.08,152.05,45.51]
[1718259814201,9.55111744,152.08,152.05,0.51]
[1718259815013,9.55111744,152.08,152.05,8.81]
[1718259815305,9.55111744,152.08,152.06,45.17]
[1718259820020,8.3,152.11,152.07,0.34]
[1718259820183,17.85111744,152.12,152.07,0.51]
[1718259820783,9.55111744,152.12,152.07,8.81]
[1718259821501,17.85111744,152.12,152.07,0.51]
[1718259823599,9.55111744,152.12,152.07,8.81]
[1718259823806,9.55111744,152.12,152.08,45.17]
[1718259824100,9.55111744,152.12,152.09,0.34]
[1718259832992,9.55111744,152.14,152.09,0.34]
[1718259833199,9.55111744,152.14,152.1,0.17]
[1718259833399,9.55111744,152.14,152.1,45.17]
[1718259838180,9.55111744,152.14,152.11,0.17]
[1718259838387,9.55111744,152.14,152.11,0.51]
[1718259838589,9.55111744,152.14,152.12,0.17]
[1718259838987,9.55111744,152.14,152.12,0.34]
[1718259844394,9.55111744,152.14,152.06,117.60870943]
[1718259844596,16.5254,152.16,152.06,15.8013]
[1718259844597,17.85111744,152.11,152.06,15.8013]
[1718259844817,8.3,152.1,152.06,15.8013]
[1718259845313,8.3,152.1,152.06,18.2345]
[1718259845904,17.85111744,152.11,152.07,0.17]
[1718259846143,17.85111744,152.11,152.07,0.34]
[1718259846325,9.55111744,152.11,152.08,0.17]
[1718259846504,9.55111744,152.11,152.08,2.9428]
[1718259846703,9.55111744,152.11,152.09,0.17]
[1718259847024,9.55111744,152.11,152.09,0.51]
[1718259847318,9.55111744,152.11,152.09,0.34]
[1718259853822,9.55111744,152.11,152.08,0.34]
[1718259854026,17.85111744,152.11,152.07,45.0]
[1718259854922,8.3,152.1,152.07,45.0]
[1718259855836,9.55111744,152.11,152.07,45.0]
[1718259855837,17.85111744,152.11,152.07,45.0]
[1718259859808,8.3,152.1,152.07,45.0]
[1718259864027,17.85111744,152.11,152.07,45.0]
[1718259864407,45.6971,152.0,151.94,71.67379299]
[1718259864734,45.6971,152.0,151.86,9.29306472]
[1718259864735,8.3,151.98,151.86,9.29306472]
[1718259865034,8.3,151.89,151.84,8.3]
[1718259865329,9.55111744,151.94,151.84,8.3]
[1718259865513,9.55111744,151.94,151.86,2.4364]
[1718259865714,8.3,151.9,151.86,2.4364]
[1718259866622,8.3,151.91,151.87,0.17]
[1718259866825,8.3,151.91,151.87,0.68]
[1718259867128,8.3,151.91,151.87,45.68]
[1718259868135,8.3,151.92,151.87,45.68]
[1718259868320,8.3,151.91,151.87,45.68]
[1718259869637,8.3,151.92,151.87,45.68]
[1718259870349,8.3,151.92,151.87,53.98]
[1718259872641,8.3,151.93,151.87,53.98]
[1718259873740,9.55111744,151.97,151.87,45.68]
[1718259873941,9.55111744,151.97,151.89,8.3]
[1718259874126,9.55111744,151.97,151.9,0.68]
[1718259874127,8.3,151.94,151.9,0.68]